fUSD/lending_fUSD_20260511
["ID","MTS","AMOUNT","RATE_DAILY","PERIOD"]
[422026052,1778488247000,-157.52,0.00026237,30]
[422026050,1778488247000,-672.27,0.000262,2]
[422026049,1778488247000,-157.52,0.00026195,7]
[422026057,1778488247000,-672.27,0.00026286,2]
[422026067,1778488247000,-163.73,0.00026388,2]
[422026056,1778488247000,-157.52,0.0002628,2]
[422026066,1778488247000,-672.27,0.00026373,2]
[422026061,1778488247000,-157.52,0.00026322,7]
[422026060,1778488247000,-672.27,0.00026315,7]
[422026058,1778488247000,-639.5,0.00026296,2]
[422026063,1778488247000,-672.27,0.00026344,7]
[422026059,1778488247000,-7278.40236706,0.000263,2]
[422026065,1778488247000,-151.0,0.00026365,7]
[422026097,1778488247000,-163.73,0.00027108,30]
[422026064,1778488247000,-157.52,0.00026364,30]
[422026098,1778488247000,-163.73,0.00027253,2]
[422026140,1778488247000,-151.0,0.00029667,7]
[422026134,1778488247000,-1099.6,0.00029,30]
[422026132,1778488247000,-2241.9022857,0.000287,2]
[422026142,1778488247000,-151.0,0.00029667,7]
[422026135,1778488247000,-2582.02635059,0.000291,2]
[422026138,1778488247000,-173.79484623,0.00029534,12]
[422026133,1778488247000,-2932.25654863,0.000287,2]
[422026136,1778488247000,-151.0,0.000295,7]
[422026137,1778488247000,-151.0,0.000295,7]
[422026141,1778488247000,-151.0,0.00029667,7]
[422026139,1778488247000,-3023.9774348,0.00029667,2]
[422026144,1778488247000,-500.0,0.00029999,7]
[422026150,1778488247000,-1893.12,0.0003,2]
[422026146,1778488247000,-31666.77866844,0.0003,2]
[422026149,1778488247000,-572.01969778,0.0003,2]
[422026145,1778488247000,-395.46941069,0.0003,120]
[422026147,1778488247000,-14678.37508463,0.0003,2]
[422026143,1778488247000,-151.0,0.00029667,7]
[422026152,1778488247000,-659.03,0.00016075,2]
[422026148,1778488247000,-910.34385837,0.0003,2]
[422026151,1778488247000,-2233.2002,0.0003,2]
[422026154,1778488247000,-8112.29816085,0.0003,2]
[422026153,1778488247000,-659.03,0.00022505,2]
[422026155,1778488247000,-505.0,0.0003,2]
[422026156,1778488247000,-1052.14230173,0.0003,2]
[422026158,1778488247000,-535.93523618,0.000301,120]
[422026101,1778488247000,-163.8,0.00027397,7]
[422026131,1778488247000,-3628.0,0.00028408,2]
[422026130,1778488247000,-4634.059,0.00028408,2]
[422026157,1778488247000,-14746.91894632,0.0003,2]
[422026124,1778488247000,-210.662153,0.00028408,7]
[422026129,1778488247000,-1223.0,0.00028408,2]
[422026100,1778488247000,-180.0,0.00027397,2]
[422026102,1778488247000,-151.0,0.00027397,2]
[422026104,1778488247000,-210.662153,0.00027397,2]
[422026105,1778488247000,-210.662153,0.00027397,2]
[422026113,1778488247000,-151.0,0.00027397,2]
[422026115,1778488247000,-6118.08,0.00027397,10]
[422026106,1778488247000,-210.662153,0.00027397,2]
[422026107,1778488247000,-210.662153,0.00027397,2]
[422026108,1778488247000,-210.662153,0.00027397,2]
[422026103,1778488247000,-151.0,0.00027397,2]
[422026114,1778488247000,-7341.7,0.00027397,10]
[422026109,1778488247000,-210.662153,0.00027397,2]
[422026111,1778488247000,-210.662153,0.00027397,2]
[422026099,1778488247000,-7278.40236706,0.000273,2]
[422026110,1778488247000,-210.662153,0.00027397,2]
[422026117,1778488247000,-161.18144398,0.000274,120]
[422026126,1778488247000,-210.662153,0.00028408,7]
[422026128,1778488247000,-1269.0,0.00028408,2]
[422026125,1778488247000,-210.662153,0.00028408,7]
[422026127,1778488247000,-210.662153,0.00028408,7]
[422026118,1778488247000,-173.79484623,0.0002766,10]
[422026120,1778488247000,-266.06662267,0.00027806,2]
[422026116,1778488247000,-5098.4,0.00027397,10]
[422026119,1778488247000,-500.0,0.000278,7]
[422026122,1778488247000,-214.32694334,0.00028,10]
[422026121,1778488247000,-208.15897961,0.00028,10]
[422026123,1778488247000,-639.5,0.00028267,2]
[422026112,1778488247000,-151.0,0.00027397,2]
[422026160,1778489202000,156.15,0.00011876,2]
[422026165,1778489236000,-139.22820818,0.00014559,2]
[422026164,1778489236000,-150.0,0.00014419,2]
[422026161,1778489236000,-250.0,0.00014,2]
[422026162,1778489236000,-150.0,0.00014139,2]
[422026163,1778489236000,-150.0,0.00014279,2]
[422026202,1778489432000,-1223.0,0.00018918,2]
[422026200,1778489432000,-926.0,0.00018918,2]
[422026198,1778489432000,-227.23643277,0.00018918,2]
[422026201,1778489432000,-1269.0,0.00018918,2]
[422026203,1778489432000,-417.0,0.00018918,2]
[422026205,1778489432000,-32695.39894563,0.00019246,2]
[422026206,1778489432000,-156.78077958,0.00019783,2]
[422026204,1778489432000,-2080.17592889,0.00019235,2]
[422026207,1778489432000,-200.0,0.00019826,2]
[422026209,1778489432000,-161.8414555,0.0002,2]
[422026208,1778489432000,-394.0,0.0002,2]
[422026212,1778489432000,-394.0,0.00021,2]
[422026217,1778489432000,-1269.0,0.00021918,2]
[422026221,1778489432000,-150.0,0.00022079,2]
[422026211,1778489432000,-150.0,0.00020533,21]
[422026218,1778489432000,-1223.0,0.00021918,2]
[422026214,1778489432000,-624.0,0.00021918,2]
[422026219,1778489432000,-394.0,0.00022,2]
[422026213,1778489432000,-3538.0,0.00021918,2]
[422026199,1778489432000,-1125.76356723,0.00018918,2]
[422026215,1778489432000,-1353.0,0.00021918,2]
[422026216,1778489432000,-926.0,0.00021918,2]
[422026210,1778489432000,-266.5,0.00020381,2]
[422026220,1778489432000,-150.0,0.00022079,2]
[422026176,1778489432000,-250.0,0.00016015,2]
[422026197,1778489432000,-624.0,0.00018918,2]
[422026223,1778489432000,-257.0,0.00022149,2]
[422026171,1778489432000,-300.0,0.0001516,2]
[422026170,1778489432000,-300.0,0.00014679,2]
[422026173,1778489432000,-300.0,0.0001516,2]
[422026172,1778489432000,-300.0,0.0001516,2]
[422026175,1778489432000,-300.0,0.00016015,2]
[422026180,1778489432000,-500.0,0.00016279,2]
[422026179,1778489432000,-600.0,0.00016279,2]
[422026174,1778489432000,-352.67727803,0.00015208,2]
[422026178,1778489432000,-232.59523348,0.00016278,2]
[422026177,1778489432000,-967.40476652,0.00016278,2]
[422026181,1778489432000,-266.5,0.00016438,2]
[422026183,1778489432000,-500.0,0.00017298,2]
[422026184,1778489432000,-214.82098671,0.00017307,2]
[422026187,1778489432000,-208.15897961,0.00017328,2]
[422026186,1778489432000,-150.99,0.00017312,2]
[422026188,1778489432000,-160.0,0.00017328,2]
[422026192,1778489432000,-436.0,0.00018917,2]
[422026190,1778489432000,-1680.0,0.00017881,2]
[422026189,1778489432000,-156.15,0.00017581,2]
[422026191,1778489432000,-266.5,0.0001841,2]
[422026193,1778489432000,-653.73989523,0.00018918,2]
[422026195,1778489432000,-987.95536,0.00018918,2]
[422026196,1778489432000,-1898.30474477,0.00018918,2]
[422026222,1778489432000,-263.54589607,0.00022079,2]
[422026254,1778489432000,-154.35,0.00024658,2]
[422026225,1778489432000,-301.0,0.00022386,2]
[422026259,1778489432000,-624.0,0.00024918,2]
[422026251,1778489432000,-510.0,0.00024397,2]
[422026224,1778489432000,-266.5,0.00022353,2]
[422026261,1778489432000,-926.0,0.00024918,2]
[422026255,1778489432000,-171.13,0.00024756,2]
[422026258,1778489432000,-152.7,0.00024907,7]
[422026256,1778489432000,-1009.39,0.00024802,7]
[422026257,1778489432000,-483.28,0.00024869,2]
[422026262,1778489432000,-1223.0,0.00024918,2]
[422026263,1778489432000,-154.35,0.00024931,7]
[422026264,1778489432000,-1009.39,0.00024946,2]
[422026266,1778489432000,-220.04,0.00025014,2]
[422026268,1778489432000,-498.0,0.00025072,10]
[422026267,1778489432000,-835.0,0.00025072,10]
[422026269,1778489432000,-652.0,0.00025072,10]
[422026273,1778489432000,-1009.39,0.00025234,7]
[422026270,1778489432000,-1009.39,0.0002509,2]
[422026272,1778489432000,-154.35,0.00025205,30]
[422026274,1778489432000,-1009.39,0.00025378,7]
[422026265,1778489432000,-395.09933415,0.00025,2]
[422026271,1778489432000,-152.7,0.00025156,30]
[422026276,1778489432000,-1009.39,0.00025523,2]
[422026275,1778489432000,-483.28,0.00025447,2]
[422026252,1778489432000,-1009.39,0.00024658,2]
[422026260,1778489432000,-1353.0,0.00024918,2]
[422026253,1778489432000,-152.7,0.00024658,2]
[422026248,1778489432000,-1174.67538982,0.00024277,2]
[422026226,1778489432000,-16295.93175723,0.00022649,2]
[422026227,1778489432000,-304.75532758,0.0002265,2]
[422026228,1778489432000,-394.0,0.00023,2]
[422026229,1778489432000,-1525.31,0.00023012,2]
[422026234,1778489432000,-4538.37,0.00023195,2]
[422026231,1778489432000,-1912.989,0.00023098,2]
[422026250,1778489432000,-266.5,0.00024324,2]
[422026230,1778489432000,-2238.45,0.00023028,2]
[422026232,1778489432000,-165.933,0.00023098,2]
[422026236,1778489432000,-763.0,0.00023239,2]
[422026235,1778489432000,-2343.97,0.00023195,2]
[422026233,1778489432000,-483.28,0.00023134,2]
[422026245,1778489432000,-488.99,0.0002386,2]
[422026237,1778489432000,-150.0,0.00023246,2]
[422026247,1778489432000,-394.0,0.00024,2]
[422026242,1778489432000,-152.61,0.00023651,2]
[422026239,1778489432000,-1817.78,0.00023538,2]
[422026240,1778489432000,-5175.3872,0.00023543,2]
[422026249,1778489432000,-483.28,0.00024291,2]
[422026244,1778489432000,-5000.0,0.00023852,2]
[422026246,1778489432000,-200.0,0.00023967,2]
[422026241,1778489432000,-6427.81163082,0.00023643,2]
[422026243,1778489432000,-483.28,0.00023712,2]
[422026238,1778489432000,-156.15,0.00023286,2]
[422026309,1778489433000,-672.92,0.00026402,7]
[422026305,1778489433000,-674.7405693,0.00026358,2]
[422026307,1778489433000,-1009.39,0.00026388,2]
[422026304,1778489433000,-672.92,0.00026344,7]
[422026302,1778489433000,-672.92,0.00026315,7]
[422026308,1778489433000,-161.7,0.00026392,7]
[422026306,1778489433000,-672.92,0.00026373,2]
[422026310,1778489433000,-152.69,0.00026418,30]
[422026311,1778489433000,-672.92,0.00026431,2]
[422026313,1778489433000,-161.7,0.00026483,30]
[422026303,1778489433000,-152.69,0.0002634,7]
[422026315,1778489433000,-152.69,0.00026497,2]
[422026314,1778489433000,-672.92,0.00026488,7]
[422026321,1778489433000,-152.76,0.00026575,7]
[422026319,1778489433000,-672.92,0.00026546,2]
[422026318,1778489433000,-151.0,0.00026536,5]
[422026317,1778489433000,-1009.39,0.00026532,7]
[422026316,1778489433000,-672.92,0.00026517,7]
[422026320,1778489433000,-673.09,0.00026575,7]
[422026323,1778489433000,-1009.39,0.00026676,2]
[422026322,1778489433000,-161.71,0.00026575,2]
[422026312,1778489433000,-672.92,0.00026459,2]
[422026300,1778489433000,-266.5,0.00026296,2]
[422026324,1778489433000,-1009.39,0.0002682,2]
[422026299,1778489433000,-672.92,0.00026286,2]
[422026278,1778489433000,-1009.39,0.00025811,2]
[422026279,1778489433000,-1525.31,0.00025888,2]
[422026285,1778489433000,-672.92,0.00026084,2]
[422026283,1778489433000,-161.7,0.00026027,2]
[422026284,1778489433000,-672.92,0.00026055,7]
[422026288,1778489433000,-672.92,0.00026113,2]
[422026286,1778489433000,-1009.39,0.00026099,7]
[422026280,1778489433000,-510.0,0.00025942,3]
[422026287,1778489433000,-152.69,0.00026105,7]
[422026277,1778489433000,-1009.39,0.00025667,7]
[422026282,1778489433000,-672.92,0.00026027,2]
[422026281,1778489433000,-1009.39,0.00025955,2]
[422026290,1778489433000,-672.92,0.00026142,7]
[422026289,1778489433000,-161.7,0.00026118,7]
[422026293,1778489433000,-672.92,0.000262,2]
[422026292,1778489433000,-152.69,0.00026183,30]
[422026297,1778489433000,-672.92,0.00026257,2]
[422026296,1778489433000,-1009.39,0.00026243,7]
[422026294,1778489433000,-161.7,0.00026209,30]
[422026295,1778489433000,-672.92,0.00026229,7]
[422026298,1778489433000,-152.69,0.00026262,2]
[422026301,1778489433000,-161.7,0.00026301,2]
[422026326,1778489433000,-150.0,0.00027025,4]
[422026291,1778489433000,-672.92,0.00026171,7]
[422026327,1778489433000,-150.0,0.00027025,4]
[422026354,1778489433000,-566.04870203,0.00029999,2]
[422026355,1778489433000,-500.0,0.00029999,2]
[422026359,1778489433000,-500.0,0.00029999,2]
[422026358,1778489433000,-500.0,0.00029999,2]
[422026362,1778489433000,-320.86285107,0.00029999,2]
[422026361,1778489433000,-500.0,0.00029999,2]
[422026364,1778489433000,-206.38873442,0.00029999,2]
[422026360,1778489433000,-500.0,0.00029999,2]
[422026356,1778489433000,-547.03859258,0.00029999,2]
[422026363,1778489433000,-179.13714893,0.00029999,2]
[422026366,1778489433000,-500.0,0.00029999,7]
[422026365,1778489433000,-150.0,0.00029999,2]
[422026368,1778489433000,-500.0,0.00029999,7]
[422026367,1778489433000,-500.0,0.00029999,7]
[422026369,1778489433000,-500.0,0.00029999,7]
[422026374,1778489433000,-282.88279963,0.0003,2]
[422026370,1778489433000,-24566.38271135,0.0003,2]
[422026372,1778489433000,-29397.65491395,0.0003,2]
[422026373,1778489433000,-1254.41808677,0.0003,2]
[422026375,1778489433000,-584.2230207,0.0003,2]
[422026371,1778489433000,-10952.90347061,0.0003,2]
[422026353,1778489433000,-500.0,0.00029999,2]
[422026348,1778489433000,-192.96747304,0.0002999,2]
[422026357,1778489433000,-500.0,0.00029999,2]
[422026349,1778489433000,-637.99035433,0.00029999,2]
[422026334,1778489433000,-500.0,0.000278,7]
[422026330,1778489433000,-1009.39,0.00027253,2]
[422026331,1778489433000,-1009.46,0.00027397,7]
[422026328,1778489433000,-150.00000001,0.00027025,4]
[422026332,1778489433000,-4248.67,0.00027397,10]
[422026329,1778489433000,-1009.39,0.00027108,7]
[422026333,1778489433000,-510.0,0.00027486,5]
[422026351,1778489433000,-194.02089378,0.00029999,2]
[422026335,1778489433000,-624.0,0.00027918,2]
[422026337,1778489433000,-926.0,0.00027918,2]
[422026339,1778489433000,-266.5,0.00028267,2]
[422026336,1778489433000,-1349.0,0.00027918,2]
[422026341,1778489433000,-510.0,0.00029031,6]
[422026340,1778489433000,-1525.31,0.00028765,2]
[422026347,1778489433000,-500.0,0.00029918,2]
[422026350,1778489433000,-156.36920599,0.00029999,2]
[422026346,1778489433000,-2500.0,0.000299,2]
[422026352,1778489433000,-500.0,0.00029999,2]
[422026345,1778489433000,-1687.40725574,0.000299,2]
[422026342,1778489433000,-8018.00737436,0.000291,2]
[422026343,1778489433000,-238.71810824,0.000299,2]
[422026338,1778489433000,-1217.0,0.00027918,2]
[422026344,1778489433000,-5000.0,0.000299,2]
[422026325,1778489433000,-1009.39,0.00026964,7]
[422026970,1778489446000,-228.70094006,0.00021918,2]
[422026968,1778489446000,-40.44,0.00018918,2]
[422026960,1778489446000,-888.56,0.00018918,2]
[422028050,1778489463000,5000.0,0.0002081,120]
[422028051,1778489539000,205.15,0.0002671,120]
[422028052,1778489693000,156.29,0.000271,120]
[422028053,1778489773000,527.97,0.00017,2]
[422028057,1778490095000,479388.96551445,0.00015,2]
[422028059,1778490121000,205.7366081,0.00016438,2]
[422028067,1778490282000,473.4,0.00027397,120]
[422028068,1778490283000,519877.32787745,0.00012,2]
[422028069,1778490283000,21243.85,0.00012,2]
[422028070,1778490435000,-1062.9220449,0.00011999,2]
[422028078,1778490632000,-250.0,0.00011999,2]
[422028076,1778490632000,-300.0,0.00011999,2]
[422028082,1778490632000,-597.13575227,0.00013099,2]
[422028080,1778490632000,-16301.28274765,0.00012,2]
[422028079,1778490632000,-52506.66328939,0.00012,2]
[422028081,1778490632000,-250.0,0.00012846,2]
[422028077,1778490632000,-1200.0,0.00011999,2]
[422028085,1778490632000,-1680.0,0.00013199,2]
[422028084,1778490632000,-250.0,0.00013199,2]
[422028086,1778490632000,-300.0,0.00013935,2]
[422028091,1778490632000,-162.2,0.00016438,2]
[422028088,1778490632000,-326.73779767,0.00013935,2]
[422028083,1778490632000,-193.64960066,0.00013199,2]
[422028087,1778490632000,-300.0,0.00013935,2]
[422028089,1778490632000,-988.0,0.00014519,2]
[422028101,1778490632000,-255.92218619,0.00017898,2]
[422028100,1778490632000,-280.63250004,0.00017898,2]
[422028098,1778490632000,-1618.91636732,0.00017898,2]
[422028097,1778490632000,-8129.2,0.00017898,2]
[422028096,1778490632000,-345.67561156,0.00017898,2]
[422028099,1778490632000,-618.31401655,0.00017898,2]
[422028094,1778490632000,-11411.89952364,0.00017898,2]
[422028093,1778490632000,-150.99,0.00017893,2]
[422028092,1778490632000,-285.27,0.00017893,2]
[422028090,1778490632000,-344.12674488,0.00015855,2]
[422028095,1778490632000,-20611.65292356,0.00017898,2]
[422028133,1778490638000,-393.0,0.00018779,2]
[422028137,1778490638000,-500.0,0.00018861,2]
[422028135,1778490638000,-202.07076129,0.0001885,2]
[422028134,1778490638000,-172.1096658,0.00018785,2]
[422028136,1778490638000,-500.0,0.00018861,2]
[422028141,1778490638000,-500.0,0.00018861,2]
[422028140,1778490638000,-500.0,0.00018861,2]
[422028143,1778490638000,-232.16503879,0.00018861,2]
[422028145,1778490638000,-174.093,0.00018918,2]
[422028147,1778490638000,-150.127,0.00018918,2]
[422028126,1778490638000,-255.1888051,0.00018173,21]
[422028138,1778490638000,-500.0,0.00018861,2]
[422028132,1778490638000,-214.82098671,0.00018765,2]
[422028139,1778490638000,-500.0,0.00018861,2]
[422028128,1778490638000,-819.26,0.00018514,2]
[422028131,1778490638000,-208.15897961,0.00018755,2]
[422028129,1778490638000,-171.13,0.00018688,2]
[422028127,1778490638000,-162.2,0.0001841,2]
[422028125,1778490638000,-56594.35612203,0.0001814,2]
[422028121,1778490638000,-2610.27687114,0.00017898,2]
[422028123,1778490638000,-200.0,0.00018049,2]
[422028124,1778490638000,-1874.56044271,0.00018073,2]
[422028122,1778490638000,-6793.3795,0.0001804,2]
[422028120,1778490638000,-1199.89,0.00017898,2]
[422028118,1778490638000,-549.87,0.00017898,2]
[422028119,1778490638000,-500.0,0.00017898,2]
[422028130,1778490638000,-160.0,0.00018755,2]
[422028150,1778490638000,-150.151,0.00018918,2]
[422028194,1778490638000,-151.0,0.00019135,2]
[422028149,1778490638000,-150.0,0.00018918,2]
[422028152,1778490638000,-926.0,0.00018918,2]
[422028206,1778490638000,-151.0,0.00019135,2]
[422028202,1778490638000,-2080.17592889,0.00019135,2]
[422028204,1778490638000,-151.0,0.00019135,2]
[422028208,1778490638000,-151.0,0.00019135,2]
[422028198,1778490638000,-151.0,0.00019135,2]
[422028200,1778490638000,-151.0,0.00019135,2]
[422028210,1778490638000,-1530.391,0.00019145,2]
[422028192,1778490638000,-151.0,0.00019135,2]
[422028188,1778490638000,-151.0,0.00019135,2]
[422028196,1778490638000,-151.0,0.00019135,2]
[422028186,1778490638000,-151.0,0.00019135,2]
[422028181,1778490638000,-151.0,0.00019135,2]
[422028190,1778490638000,-151.0,0.00019135,2]
[422028183,1778490638000,-151.0,0.00019135,2]
[422028155,1778490638000,-5000.0,0.00019046,2]
[422028179,1778490638000,-151.0,0.00019135,2]
[422028171,1778490638000,-151.0,0.00019135,2]
[422028159,1778490638000,-15606.0343,0.00019046,2]
[422028161,1778490638000,-1946.66797198,0.0001907,2]
[422028163,1778490638000,-3628.0,0.00019072,2]
[422028157,1778490638000,-2500.0,0.00019046,2]
[422028165,1778490638000,-417.0,0.00019072,2]
[422028169,1778490638000,-151.0,0.00019135,2]
[422028173,1778490638000,-151.0,0.00019135,2]
[422028177,1778490638000,-151.0,0.00019135,2]
[422028175,1778490638000,-151.0,0.00019135,2]
[422028167,1778490638000,-151.0,0.00019135,2]
[422028233,1778490639000,-500.0,0.00019145,2]
[422028231,1778490639000,-174.00541134,0.00019145,2]
[422028226,1778490639000,-500.0,0.00019145,2]
[422028218,1778490639000,-500.0,0.00019145,2]
[422028212,1778490639000,-165.933,0.00019145,2]
[422028214,1778490639000,-500.0,0.00019145,2]
[422028222,1778490639000,-446.59324803,0.00019145,2]
[422028224,1778490639000,-232.9270148,0.00019145,2]
[422028220,1778490639000,-500.0,0.00019145,2]
[422028239,1778490639000,-500.0,0.00019145,2]
[422028215,1778490639000,-511.26367736,0.00019145,2]
[422028235,1778490639000,-500.0,0.00019145,2]
[422028249,1778490639000,-500.0,0.00019145,2]
[422028245,1778490639000,-500.0,0.00019145,2]
[422028247,1778490639000,-500.0,0.00019145,2]
[422028241,1778490639000,-500.0,0.00019145,2]
[422028243,1778490639000,-500.0,0.00019145,2]
[422028253,1778490639000,-500.0,0.00019145,2]
[422028251,1778490639000,-500.0,0.00019145,2]
[422028258,1778490639000,-500.0,0.00019145,2]
[422028255,1778490639000,-432.00971053,0.00019145,2]
[422028259,1778490639000,-500.0,0.00019145,2]
[422028262,1778490639000,-203.50595333,0.00019145,2]
[422028263,1778490639000,-77558.96342583,0.00019146,2]
[422028266,1778490639000,-26277.54531563,0.00019146,2]
[422028237,1778490639000,-500.0,0.00019145,2]
[422028323,1778490640000,-855.63272108,0.00019146,2]
[422028324,1778490640000,-899.52,0.00019146,2]
[422028326,1778490640000,-40195.00000002,0.00019146,2]
[422028327,1778490640000,-1800.02694516,0.00019146,2]
[422028325,1778490640000,-398731.00698099,0.00019146,2]
[422028416,1778490646000,-3357.63988897,0.00019146,2]
[422028415,1778490646000,-1012.5,0.00019146,2]
[422028414,1778490646000,-4499.16542165,0.00019146,2]
[422028413,1778490646000,-3150.79057017,0.00019146,2]
[422028412,1778490646000,-6410.07512401,0.00019146,2]
[422028411,1778490646000,-8076.9969931,0.00019146,2]
[422028558,1778491290000,164.12,0.00025864,120]
[422028560,1778491567000,3165.624596,7.945e-05,2]
[422028561,1778491568000,153.33,8.876e-05,2]
[422028563,1778491617000,-150.73245608,0.0001455,7]
[422028566,1778491832000,-611.14691426,0.0001455,7]
[422028564,1778491832000,-298.28437991,0.0001455,7]
[422028567,1778491832000,-1649.67,0.0001455,7]
[422028569,1778491832000,-176.77448896,0.00015275,2]
[422028568,1778491832000,-123.22551104,0.00015275,2]
[422028570,1778491832000,-823.50700433,0.00016,2]
[422028565,1778491832000,-589.50624975,0.0001455,7]
[422028587,1778491838000,-76.01180677,0.00016583,2]
[422028585,1778491838000,-300.0,0.00016194,2]
[422028586,1778491838000,-300.0,0.00016194,2]
[422028584,1778491838000,-300.0,0.00016194,2]
[422028583,1778491838000,-147.72728138,0.00016,2]
[422028607,1778491840000,-150.0,0.00018789,2]
[422028604,1778491840000,-166.6,0.00018464,2]
[422028605,1778491840000,-150.0,0.00018789,2]
[422028602,1778491840000,-208.15897961,0.00017726,2]
[422028611,1778491840000,-150.0,0.00018789,2]
[422028609,1778491840000,-150.0,0.00018789,2]
[422028608,1778491840000,-150.0,0.00018789,2]
[422028600,1778491840000,-204.5796,0.00017698,2]
[422028606,1778491840000,-150.0,0.00018789,2]
[422028599,1778491840000,-500.0,0.00017679,2]
[422028595,1778491840000,-500.0,0.00017405,2]
[422028601,1778491840000,-214.82098671,0.00017722,2]
[422028597,1778491840000,-200.0,0.00017487,2]
[422028614,1778491840000,-165.934,0.0001881,2]
[422028596,1778491840000,-188.8,0.0001745,2]
[422028594,1778491840000,-500.0,0.00017131,2]
[422028592,1778491840000,-500.0,0.00016857,2]
[422028593,1778491840000,-485.61714286,0.00016978,2]
[422028590,1778491840000,-423.98819323,0.00016583,2]
[422028591,1778491840000,-236.35,0.0001661,2]
[422028603,1778491840000,-422.18808,0.00017953,2]
[422028612,1778491840000,-1642.27504537,0.000188,2]
[422028598,1778491840000,-213.99,0.00017518,2]
[422028613,1778491840000,-1224.313,0.0001881,2]
[422028635,1778491840000,-306.3902229,0.00018946,2]
[422028630,1778491840000,-214.66774561,0.00018945,2]
[422028632,1778491840000,-184.29500813,0.00018945,2]
[422028631,1778491840000,-422.58636936,0.00018945,2]
[422028633,1778491840000,-9124.40523221,0.00018946,2]
[422028629,1778491840000,-500.0,0.00018945,2]
[422028628,1778491840000,-646.13509405,0.00018945,2]
[422028625,1778491840000,-500.0,0.00018945,2]
[422028610,1778491840000,-150.0,0.00018789,2]
[422028626,1778491840000,-500.0,0.00018945,2]
[422028627,1778491840000,-507.26527955,0.00018945,2]
[422028634,1778491840000,-330.10157347,0.00018946,2]
[422028621,1778491840000,-605.0,0.00018877,2]
[422028622,1778491840000,-500.0,0.00018945,2]
[422028623,1778491840000,-500.0,0.00018945,2]
[422028615,1778491840000,-164.12,0.0001881,2]
[422028617,1778491840000,-154.55261817,0.00018857,3]
[422028618,1778491840000,-1939.00278531,0.00018857,2]
[422028620,1778491840000,-2345.74196705,0.00018857,2]
[422028619,1778491840000,-1687.10439843,0.00018857,2]
[422028616,1778491840000,-5000.0,0.00018846,2]
[422028624,1778491840000,-500.0,0.00018945,2]
[422028642,1778491841000,-398731.00698099,0.00018946,2]
[422028636,1778491841000,-26277.54531563,0.00018946,2]
[422028702,1778491843000,-963.890001,0.00018946,2]
[422028703,1778491844000,-249432.28063578,0.00018946,2]
[422028720,1778491846000,-503.0,0.00018946,2]
[422028722,1778491846000,-3182.73165263,0.00018946,2]
[422028721,1778491846000,-553.0,0.00018946,2]
[422028816,1778492828000,-218.06206367,0.00016005,2]
[422028813,1778492828000,-250.0,0.00014,2]
[422028815,1778492828000,-150.73183692,0.00016005,2]
[422028814,1778492828000,-242.80857143,0.0001455,7]
[422028838,1778493031000,-299.99,0.00018151,4]
[422028831,1778493031000,-188.8,0.00017846,2]
[422028832,1778493031000,-2902.92,0.00017846,2]
[422028835,1778493031000,-166.6,0.00018151,2]
[422028837,1778493031000,-150.99,0.00018151,2]
[422028839,1778493031000,-5530.0,0.000183,5]
[422028834,1778493031000,-153.0,0.0001805,2]
[422028833,1778493031000,-171.0,0.0001805,2]